[Event "Titled Tuesday Blitz May 2 Late 2023"]
[White "Erzhanov, Arman"]
[Black "Adla, Diego"]
[WhiteFideId "4138821"]
[BlackFideId "100072"]
[WhiteElo "2138"]
[BlackElo "2377"]
[Result "1-0"]
[Round "08"]
[TimeControl "180+2"]
[Date "2023.05.02"]
[WhiteClock "0:00:19"]
[BlackClock "0:00:03"]

1. e4 {[%clk 0:02:50]}  e5 {[%clk 0:02:59]} 2. Nf3 {[%clk 0:02:49]}  Nc6 {[%clk 0:02:54]} 3. Bb5 {[%clk 0:02:48]}  Bc5 {[%clk 0:02:53]} 4. c3 {[%clk 0:02:44]}  Qf6 {[%clk 0:02:53]} 5. d4 {[%clk 0:02:40]}  Bb6 {[%clk 0:02:49]} 6. O-O {[%clk 0:02:36]}  Nge7 {[%clk 0:02:43]} 7. d5 {[%clk 0:02:24]}  a6 {[%clk 0:02:41]} 8. Bd3 {[%clk 0:02:16]}  Nd8 {[%clk 0:02:39]} 9. Bg5 {[%clk 0:02:13]}  Qg6 {[%clk 0:02:40]} 10. Bxe7 {[%clk 0:02:10]}  Kxe7 {[%clk 0:02:39]} 11. Nxe5 {[%clk 0:02:11]}  Qh6 {[%clk 0:02:39]} 12. Ng4 {[%clk 0:01:55]}  Qg5 {[%clk 0:02:35]} 13. d6+ {[%clk 0:01:47]}  cxd6 {[%clk 0:02:34]} 14. Kh1 {[%clk 0:01:41]}  h5 {[%clk 0:02:30]} 15. Ne3 {[%clk 0:01:40]}  Bxe3 {[%clk 0:02:25]} 16. fxe3 {[%clk 0:01:41]}  b5 {[%clk 0:02:25]} 17. a4 {[%clk 0:01:40]}  Bb7 {[%clk 0:02:21]} 18. axb5 {[%clk 0:01:39]}  axb5 {[%clk 0:02:14]} 19. Rxa8 {[%clk 0:01:39]}  Bxa8 {[%clk 0:02:15]} 20. Nd2 {[%clk 0:01:37]}  Ne6 {[%clk 0:02:08]} 21. Rf5 {[%clk 0:01:35]}  Qxe3 {[%clk 0:02:02]} 22. Nf1 {[%clk 0:01:33]}  Qh6 {[%clk 0:01:55]} 23. Rxb5 {[%clk 0:01:23]}  g6 {[%clk 0:01:55]} 24. Ne3 {[%clk 0:01:22]}  h4 {[%clk 0:01:53]} 25. Qf3 {[%clk 0:01:18]}  h3 {[%clk 0:01:53]} 26. g3 {[%clk 0:01:13]}  Ng5 {[%clk 0:01:48]} 27. Qf4 {[%clk 0:01:10]}  Nxe4 {[%clk 0:01:45]} 28. Qxh6 {[%clk 0:01:02]}  Rxh6 {[%clk 0:01:36]} 29. Nd5+ {[%clk 0:01:00]}  Bxd5 {[%clk 0:01:35]} 30. Rxd5 {[%clk 0:01:01]}  Nf6 {[%clk 0:01:27]} 31. Rd4 {[%clk 0:00:59]}  Rh5 {[%clk 0:01:26]} 32. Bf1 {[%clk 0:00:58]}  g5 {[%clk 0:01:24]} 33. g4 {[%clk 0:00:49]}  Rh4 {[%clk 0:01:24]} 34. Be2 {[%clk 0:00:49]}  d5 {[%clk 0:01:22]} 35. Bf3 {[%clk 0:00:47]}  Ke6 {[%clk 0:01:21]} 36. Kg1 {[%clk 0:00:47]}  Rh8 {[%clk 0:01:19]} 37. Kf2 {[%clk 0:00:47]}  Ra8 {[%clk 0:01:14]} 38. Kg3 {[%clk 0:00:39]}  Ra2 {[%clk 0:01:13]} 39. Rd2 {[%clk 0:00:37]}  Ke5 {[%clk 0:01:02]} 40. Kxh3 {[%clk 0:00:36]}  Ne4 {[%clk 0:01:01]} 41. Bxe4 {[%clk 0:00:34]}  dxe4 {[%clk 0:01:01]} 42. Rxd7 {[%clk 0:00:34]}  Rxb2 {[%clk 0:01:01]} 43. Rxf7 {[%clk 0:00:34]}  Rc2 {[%clk 0:01:00]} 44. Rf5+ {[%clk 0:00:35]}  Ke6 {[%clk 0:00:59]} 45. Rxg5 {[%clk 0:00:34]}  Rxc3+ {[%clk 0:01:00]} 46. Kg2 {[%clk 0:00:35]}  Rc2+ {[%clk 0:00:53]} 47. Kg3 {[%clk 0:00:26]}  Rc3+ {[%clk 0:00:53]} 48. Kf4 {[%clk 0:00:24]}  Rh3 {[%clk 0:00:50]} 49. Kxe4 {[%clk 0:00:16]}  Rxh2 {[%clk 0:00:34]} 50. Rf5 {[%clk 0:00:17]}  Re2+ {[%clk 0:00:34]} 51. Kf3 {[%clk 0:00:16]}  Re1 {[%clk 0:00:34]} 52. Kg3 {[%clk 0:00:15]}  Rh1 {[%clk 0:00:20]} 53. Rf2 {[%clk 0:00:15]}  Ke7 {[%clk 0:00:18]} 54. g5 {[%clk 0:00:15]}  Ke6 {[%clk 0:00:15]} 55. Kg4 {[%clk 0:00:15]}  Ke7 {[%clk 0:00:14]} 56. g6 {[%clk 0:00:15]}  Rh8 {[%clk 0:00:11]} 57. Kg5 {[%clk 0:00:15]}  Rf8 {[%clk 0:00:12]} 58. Re2+ {[%clk 0:00:15]}  Kd7 {[%clk 0:00:11]} 59. g7 {[%clk 0:00:14]}  Rf1 {[%clk 0:00:10]} 60. Kg6 {[%clk 0:00:14]}  Rg1+ {[%clk 0:00:10]} 61. Kh7 {[%clk 0:00:15]}  Rh1+ {[%clk 0:00:11]} 62. Kg8 {[%clk 0:00:15]}  Rh3 {[%clk 0:00:08]} 63. Re4 {[%clk 0:00:15]}  Rh1 {[%clk 0:00:07]} 64. Kf7 {[%clk 0:00:16]}  Rf1+ {[%clk 0:00:07]} 65. Kg6 {[%clk 0:00:16]}  Rg1+ {[%clk 0:00:08]} 66. Kf6 {[%clk 0:00:17]}  Rf1+ {[%clk 0:00:08]} 67. Kg5 {[%clk 0:00:17]}  Rg1+ {[%clk 0:00:04]} 68. Rg4 {[%clk 0:00:18]}  Rxg4+ {[%clk 0:00:03]} 69. Kxg4 {[%clk 0:00:19]} 1-0


[Site "https://www.chess.com"]

[Event "Titled Tuesday Blitz May 2 Late 2023"]
[White "Tomaszewski, Kacper"]
[Black "Kanakaris, Georgios"]
[WhiteFideId "1127373"]
[BlackFideId "4209460"]
[WhiteElo "2211"]
[BlackElo "2291"]
[Result "1-0"]
[Round "08"]
[TimeControl "180+2"]
[Date "2023.05.02"]
[WhiteClock "0:00:26"]
[BlackClock "0:00:02"]

1. c4 {[%clk 0:03:00]}  e5 {[%clk 0:02:59]} 2. e3 {[%clk 0:02:59]}  Nc6 {[%clk 0:02:58]} 3. Nc3 {[%clk 0:02:58]}  Nf6 {[%clk 0:02:57]} 4. a3 {[%clk 0:02:57]}  a5 {[%clk 0:02:54]} 5. Qc2 {[%clk 0:02:56]}  g6 {[%clk 0:02:51]} 6. Nf3 {[%clk 0:02:55]}  Bg7 {[%clk 0:02:51]} 7. d3 {[%clk 0:02:51]}  O-O {[%clk 0:02:51]} 8. Be2 {[%clk 0:02:50]}  d5 {[%clk 0:02:49]} 9. cxd5 {[%clk 0:02:50]}  Nxd5 {[%clk 0:02:50]} 10. Bd2 {[%clk 0:02:51]}  Be6 {[%clk 0:02:39]} 11. O-O {[%clk 0:02:50]}  Nxc3 {[%clk 0:02:34]} 12. Bxc3 {[%clk 0:02:50]}  a4 {[%clk 0:02:34]} 13. Rac1 {[%clk 0:02:49]}  Bb3 {[%clk 0:02:32]} 14. Qb1 {[%clk 0:02:47]}  Qe7 {[%clk 0:02:13]} 15. Nd2 {[%clk 0:02:45]}  Bd5 {[%clk 0:02:14]} 16. Ne4 {[%clk 0:02:33]}  f5 {[%clk 0:02:04]} 17. Nd2 {[%clk 0:02:26]}  Rad8 {[%clk 0:01:56]} 18. Bd1 {[%clk 0:02:20]}  Qh4 {[%clk 0:01:34]} 19. e4 {[%clk 0:02:15]}  Be6 {[%clk 0:01:23]} 20. Bxa4 {[%clk 0:02:10]}  Bh6 {[%clk 0:01:13]} 21. Rce1 {[%clk 0:02:05]}  Nd4 {[%clk 0:01:09]} 22. Bd1 {[%clk 0:01:48]}  Bxd2 {[%clk 0:00:58]} 23. Bxd2 {[%clk 0:01:47]}  f4 {[%clk 0:00:58]} 24. f3 {[%clk 0:01:36]}  Rd7 {[%clk 0:00:55]} 25. Bc2 {[%clk 0:01:23]}  Rfd8 {[%clk 0:00:49]} 26. Bc3 {[%clk 0:01:20]}  Qg5 {[%clk 0:00:35]} 27. Bxd4 {[%clk 0:01:13]}  Rxd4 {[%clk 0:00:35]} 28. Rf2 {[%clk 0:01:13]}  h5 {[%clk 0:00:30]} 29. b4 {[%clk 0:01:06]}  h4 {[%clk 0:00:30]} 30. Bb3 {[%clk 0:01:05]}  Qe7 {[%clk 0:00:19]} 31. Qa2 {[%clk 0:01:03]}  Bxb3 {[%clk 0:00:12]} 32. Qxb3+ {[%clk 0:01:04]}  Kg7 {[%clk 0:00:13]} 33. Rd1 {[%clk 0:00:59]}  h3 {[%clk 0:00:07]} 34. gxh3 {[%clk 0:00:59]}  R8d6 {[%clk 0:00:05]} 35. Rg2 {[%clk 0:00:57]}  Qh4 {[%clk 0:00:04]} 36. Qc2 {[%clk 0:00:39]}  c6 {[%clk 0:00:04]} 37. Qe2 {[%clk 0:00:30]}  Qxh3 {[%clk 0:00:03]} 38. Rg4 {[%clk 0:00:29]}  Rd8 {[%clk 0:00:02]} 39. Kh1 {[%clk 0:00:26]} 1-0


[Site "https://www.chess.com"]

[Event "Titled Tuesday Blitz May 2 Late 2023"]
[White "Petrovic, Aleksa"]
[Black "Adewumi, Tanitoluwa"]
[WhiteFideId "967629"]
[BlackFideId "30966396"]
[WhiteElo "2309"]
[BlackElo "2283"]
[Result "1/2-1/2"]
[Round "08"]
[TimeControl "180+2"]
[Date "2023.05.02"]
[WhiteClock "0:00:02"]
[BlackClock "0:00:10"]

1. d4 {[%clk 0:03:00]}  Nf6 {[%clk 0:02:57]} 2. c4 {[%clk 0:03:01]}  e6 {[%clk 0:02:57]} 3. Nf3 {[%clk 0:03:01]}  b6 {[%clk 0:02:56]} 4. g3 {[%clk 0:03:01]}  Ba6 {[%clk 0:02:56]} 5. Qa4 {[%clk 0:03:00]}  Bb7 {[%clk 0:02:47]} 6. Bg2 {[%clk 0:03:00]}  c5 {[%clk 0:02:25]} 7. dxc5 {[%clk 0:02:59]}  Bxc5 {[%clk 0:02:25]} 8. O-O {[%clk 0:02:59]}  O-O {[%clk 0:02:25]} 9. Rd1 {[%clk 0:02:57]}  d5 {[%clk 0:02:25]} 10. cxd5 {[%clk 0:02:56]}  exd5 {[%clk 0:02:26]} 11. Nc3 {[%clk 0:02:55]}  Nc6 {[%clk 0:02:26]} 12. Bg5 {[%clk 0:02:54]}  h6 {[%clk 0:01:56]} 13. Bxf6 {[%clk 0:02:53]}  Qxf6 {[%clk 0:01:57]} 14. Nxd5 {[%clk 0:02:53]}  Qxb2 {[%clk 0:01:56]} 15. Nd2 {[%clk 0:02:26]}  Rad8 {[%clk 0:01:38]} 16. e3 {[%clk 0:02:04]}  Ne5 {[%clk 0:01:04]} 17. Nc4 {[%clk 0:01:54]}  Nxc4 {[%clk 0:01:02]} 18. Qxc4 {[%clk 0:01:55]}  Qe5 {[%clk 0:00:56]} 19. a4 {[%clk 0:01:36]}  Rd6 {[%clk 0:00:45]} 20. Nf4 {[%clk 0:01:24]}  Bxg2 {[%clk 0:00:41]} 21. Kxg2 {[%clk 0:01:25]}  Rfd8 {[%clk 0:00:33]} 22. Qc2 {[%clk 0:01:16]}  g5 {[%clk 0:00:30]} 23. Ne2 {[%clk 0:01:10]}  g4 {[%clk 0:00:20]} 24. Nc3 {[%clk 0:00:54]}  h5 {[%clk 0:00:10]} 25. Rxd6 {[%clk 0:00:40]}  Rxd6 {[%clk 0:00:10]} 26. Rd1 {[%clk 0:00:40]}  Rxd1 {[%clk 0:00:09]} 27. Nxd1 {[%clk 0:00:41]}  Qd5+ {[%clk 0:00:09]} 28. e4 {[%clk 0:00:40]}  Qc6 {[%clk 0:00:04]} 29. h3 {[%clk 0:00:36]}  Qe6 {[%clk 0:00:03]} 30. hxg4 {[%clk 0:00:35]}  Qxg4 {[%clk 0:00:04]} 31. f3 {[%clk 0:00:32]}  Qg6 {[%clk 0:00:04]} 32. Qd2 {[%clk 0:00:23]}  h4 {[%clk 0:00:04]} 33. g4 {[%clk 0:00:23]}  Qd6 {[%clk 0:00:03]} 34. Qxd6 {[%clk 0:00:21]}  Bxd6 {[%clk 0:00:04]} 35. Ne3 {[%clk 0:00:21]}  Bf4 {[%clk 0:00:03]} 36. Nd5 {[%clk 0:00:21]}  Bg3 {[%clk 0:00:03]} 37. Ne7+ {[%clk 0:00:18]}  Kf8 {[%clk 0:00:03]} 38. Nc6 {[%clk 0:00:17]}  a6 {[%clk 0:00:03]} 39. Nb4 {[%clk 0:00:15]}  b5 {[%clk 0:00:02]} 40. a5 {[%clk 0:00:12]}  Bc7 {[%clk 0:00:02]} 41. Nxa6 {[%clk 0:00:12]}  Bxa5 {[%clk 0:00:03]} 42. Kh3 {[%clk 0:00:12]}  b4 {[%clk 0:00:01]} 43. Nc5 {[%clk 0:00:11]}  Bb6 {[%clk 0:00:02]} 44. Nd3 {[%clk 0:00:08]}  Be3 {[%clk 0:00:01]} 45. Nxb4 {[%clk 0:00:07]}  Bf2 {[%clk 0:00:01]} 46. Nd3 {[%clk 0:00:07]}  Kg7 {[%clk 0:00:01]} 47. Nxf2 {[%clk 0:00:07]}  Kf6 {[%clk 0:00:02]} 48. Kxh4 {[%clk 0:00:07]}  Ke5 {[%clk 0:00:03]} 49. Kg3 {[%clk 0:00:07]}  Kd4 {[%clk 0:00:04]} 50. Nh3 {[%clk 0:00:07]}  Ke3 {[%clk 0:00:05]} 51. Ng5 {[%clk 0:00:07]}  f6 {[%clk 0:00:05]} 52. Nh7 {[%clk 0:00:08]}  f5 {[%clk 0:00:05]} 53. gxf5 {[%clk 0:00:09]}  Kd4 {[%clk 0:00:05]} 54. f6 {[%clk 0:00:08]}  Ke5 {[%clk 0:00:06]} 55. f7 {[%clk 0:00:09]}  Ke6 {[%clk 0:00:07]} 56. f8=Q {[%clk 0:00:08]}  Ke5 {[%clk 0:00:08]} 57. Qc5+ {[%clk 0:00:07]}  Ke6 {[%clk 0:00:09]} 58. Qd5+ {[%clk 0:00:07]}  Ke7 {[%clk 0:00:09]} 59. e5 {[%clk 0:00:06]}  Ke8 {[%clk 0:00:08]} 60. Nf6+ {[%clk 0:00:05]}  Ke7 {[%clk 0:00:09]} 61. Qd7+ {[%clk 0:00:04]}  Kf8 {[%clk 0:00:09]} 62. Ng4 {[%clk 0:00:02]}  Kg8 {[%clk 0:00:10]} 1/2-1/2


[Site "https://www.chess.com"]

[Event "Titled Tuesday Blitz May 2 Late 2023"]
[White "Marek, Matyas"]
[Black "Womacka, Mathias"]
[WhiteFideId "335398"]
[BlackFideId "4611390"]
[WhiteElo "2279"]
[BlackElo "2377"]
[Result "1-0"]
[Round "08"]
[TimeControl "180+2"]
[Date "2023.05.02"]
[WhiteClock "0:00:41"]
[BlackClock "0:00:06"]

1. Nf3 {[%clk 0:03:00]}  c5 {[%clk 0:02:59]} 2. g3 {[%clk 0:02:54]}  Nc6 {[%clk 0:02:57]} 3. Bg2 {[%clk 0:02:55]}  g6 {[%clk 0:02:56]} 4. O-O {[%clk 0:02:56]}  Bg7 {[%clk 0:02:56]} 5. c3 {[%clk 0:02:56]}  e5 {[%clk 0:02:56]} 6. d4 {[%clk 0:02:55]}  cxd4 {[%clk 0:02:51]} 7. cxd4 {[%clk 0:02:55]}  exd4 {[%clk 0:02:51]} 8. Bf4 {[%clk 0:02:55]}  Nge7 {[%clk 0:02:50]} 9. Bd6 {[%clk 0:02:55]}  O-O {[%clk 0:02:43]} 10. Na3 {[%clk 0:02:55]}  Re8 {[%clk 0:02:31]} 11. Nb5 {[%clk 0:02:50]}  Nf5 {[%clk 0:02:31]} 12. Bf4 {[%clk 0:02:51]}  d6 {[%clk 0:02:31]} 13. Bh3 {[%clk 0:02:29]}  a6 {[%clk 0:02:22]} 14. Bxf5 {[%clk 0:02:28]}  axb5 {[%clk 0:02:09]} 15. Bd3 {[%clk 0:02:27]}  Ne5 {[%clk 0:01:51]} 16. Bxb5 {[%clk 0:02:25]}  Nxf3+ {[%clk 0:01:51]} 17. exf3 {[%clk 0:02:25]}  Bd7 {[%clk 0:01:51]} 18. Bc4 {[%clk 0:02:22]}  Be6 {[%clk 0:01:44]} 19. Bb5 {[%clk 0:02:20]}  Bd7 {[%clk 0:01:41]} 20. Qd3 {[%clk 0:02:09]}  Be5 {[%clk 0:01:15]} 21. Bh6 {[%clk 0:02:01]}  Bxb5 {[%clk 0:01:02]} 22. Qxb5 {[%clk 0:02:02]}  Qc8 {[%clk 0:01:02]} 23. Qd3 {[%clk 0:01:46]}  Qc6 {[%clk 0:00:49]} 24. Rfc1 {[%clk 0:01:42]}  Qb6 {[%clk 0:00:49]} 25. b3 {[%clk 0:01:40]}  Rec8 {[%clk 0:00:44]} 26. Bd2 {[%clk 0:01:37]}  Rc6 {[%clk 0:00:40]} 27. a4 {[%clk 0:01:32]}  Rac8 {[%clk 0:00:39]} 28. f4 {[%clk 0:01:30]}  Bg7 {[%clk 0:00:37]} 29. Rxc6 {[%clk 0:01:27]}  bxc6 {[%clk 0:00:35]} 30. a5 {[%clk 0:01:27]}  Qa7 {[%clk 0:00:27]} 31. a6 {[%clk 0:01:26]}  Rb8 {[%clk 0:00:26]} 32. Qc4 {[%clk 0:01:24]}  c5 {[%clk 0:00:19]} 33. Ba5 {[%clk 0:01:12]}  d5 {[%clk 0:00:17]} 34. Qxd5 {[%clk 0:00:56]}  Qxa6 {[%clk 0:00:17]} 35. Qxc5 {[%clk 0:00:53]}  Qb5 {[%clk 0:00:13]} 36. b4 {[%clk 0:00:42]}  d3 {[%clk 0:00:11]} 37. Rd1 {[%clk 0:00:41]}  Qxc5 {[%clk 0:00:09]} 38. bxc5 {[%clk 0:00:42]}  Rb3 {[%clk 0:00:06]} 39. c6 {[%clk 0:00:41]} 1-0


[Site "https://www.chess.com"]

[Event "Titled Tuesday Blitz May 2 Late 2023"]
[White "Vlassov, Nikolai"]
[Black "Papayan, Oleg"]
[WhiteFideId "4103360"]
[BlackFideId "4193911"]
[WhiteElo "2324"]
[BlackElo "2153"]
[Result "1-0"]
[Round "08"]
[TimeControl "180+2"]
[Date "2023.05.02"]
[WhiteClock "0:00:08"]
[BlackClock "0:00:01"]

1. e4 {[%clk 0:03:00]}  d5 {[%clk 0:03:00]} 2. exd5 {[%clk 0:03:00]}  Qxd5 {[%clk 0:03:01]} 3. Nc3 {[%clk 0:03:00]}  Qa5 {[%clk 0:03:02]} 4. Nf3 {[%clk 0:03:01]}  Nf6 {[%clk 0:03:02]} 5. d4 {[%clk 0:03:01]}  Bf5 {[%clk 0:03:02]} 6. Ne5 {[%clk 0:03:00]}  c6 {[%clk 0:03:03]} 7. g4 {[%clk 0:02:57]}  Be6 {[%clk 0:03:03]} 8. Rg1 {[%clk 0:02:53]}  Nbd7 {[%clk 0:02:59]} 9. Nc4 {[%clk 0:02:53]}  Qc7 {[%clk 0:02:47]} 10. Qf3 {[%clk 0:02:51]}  Qxh2 {[%clk 0:02:36]} 11. Rg3 {[%clk 0:02:29]}  Qh4 {[%clk 0:02:09]} 12. g5 {[%clk 0:02:21]}  Nd5 {[%clk 0:01:39]} 13. Bd2 {[%clk 0:02:20]}  Qxd4 {[%clk 0:01:33]} 14. O-O-O {[%clk 0:02:13]}  Ne5 {[%clk 0:01:03]} 15. Nxe5 {[%clk 0:02:00]}  Qxe5 {[%clk 0:01:04]} 16. Ne4 {[%clk 0:01:49]}  O-O-O {[%clk 0:00:57]} 17. Bd3 {[%clk 0:01:38]}  f5 {[%clk 0:00:56]} 18. Nc5 {[%clk 0:01:32]}  Nf4 {[%clk 0:00:22]} 19. Qxf4 {[%clk 0:01:07]}  Qxc5 {[%clk 0:00:21]} 20. Re1 {[%clk 0:00:57]}  Bd7 {[%clk 0:00:14]} 21. Re5 {[%clk 0:00:51]}  Qd6 {[%clk 0:00:15]} 22. Bb4 {[%clk 0:00:46]}  Qc7 {[%clk 0:00:13]} 23. Qe3 {[%clk 0:00:26]}  e6 {[%clk 0:00:06]} 24. Bxf8 {[%clk 0:00:18]}  Rhxf8 {[%clk 0:00:07]} 25. f4 {[%clk 0:00:18]}  b6 {[%clk 0:00:06]} 26. Rh3 {[%clk 0:00:17]}  h6 {[%clk 0:00:04]} 27. gxh6 {[%clk 0:00:17]}  gxh6 {[%clk 0:00:05]} 28. Rxh6 {[%clk 0:00:17]}  Rh8 {[%clk 0:00:06]} 29. Rxh8 {[%clk 0:00:17]}  Rxh8 {[%clk 0:00:07]} 30. b3 {[%clk 0:00:17]}  Kb7 {[%clk 0:00:06]} 31. Kb2 {[%clk 0:00:17]}  Rh1 {[%clk 0:00:05]} 32. Qd4 {[%clk 0:00:17]}  Rh7 {[%clk 0:00:05]} 33. a4 {[%clk 0:00:16]}  a5 {[%clk 0:00:05]} 34. b4 {[%clk 0:00:16]}  axb4 {[%clk 0:00:05]} 35. Qxb4 {[%clk 0:00:16]}  Kc8 {[%clk 0:00:04]} 36. Ba6+ {[%clk 0:00:12]}  Kb8 {[%clk 0:00:04]} 37. Bc4 {[%clk 0:00:12]}  Ka7 {[%clk 0:00:03]} 38. a5 {[%clk 0:00:10]}  b5 {[%clk 0:00:02]} 39. Bxe6 {[%clk 0:00:10]}  Bxe6 {[%clk 0:00:02]} 40. Rxe6 {[%clk 0:00:10]}  Rd7 {[%clk 0:00:02]} 41. Qc5+ {[%clk 0:00:10]}  Kb7 {[%clk 0:00:03]} 42. a6+ {[%clk 0:00:10]}  Ka8 {[%clk 0:00:02]} 43. Rxc6 {[%clk 0:00:09]}  Qxf4 {[%clk 0:00:01]} 44. Rc8+ {[%clk 0:00:08]}  Qb8 {[%clk 0:00:02]} 45. Qc6+ {[%clk 0:00:08]}  Rb7 {[%clk 0:00:01]} 46. Qxb7# {[%clk 0:00:08]} 1-0


[Site "https://www.chess.com"]

[Event "Titled Tuesday Blitz May 2 Late 2023"]
[White "Janaszak, Dawid"]
[Black "Przybylski, Wojciech"]
[WhiteFideId "1119206"]
[BlackFideId "1117599"]
[WhiteElo "2220"]
[BlackElo "2222"]
[Result "1-0"]
[Round "08"]
[TimeControl "180+2"]
[Date "2023.05.02"]
[WhiteClock "0:00:09"]
[BlackClock "0:00:02"]

1. e4 {[%clk 0:03:00]}  e5 {[%clk 0:02:57]} 2. Nc3 {[%clk 0:03:00]}  Nc6 {[%clk 0:02:56]} 3. Bc4 {[%clk 0:02:58]}  d6 {[%clk 0:02:56]} 4. d3 {[%clk 0:02:56]}  Be6 {[%clk 0:02:56]} 5. Bxe6 {[%clk 0:02:55]}  fxe6 {[%clk 0:02:55]} 6. f4 {[%clk 0:02:56]}  Nf6 {[%clk 0:02:53]} 7. Nf3 {[%clk 0:02:55]}  Qd7 {[%clk 0:02:53]} 8. fxe5 {[%clk 0:02:50]}  dxe5 {[%clk 0:02:53]} 9. Be3 {[%clk 0:02:49]}  O-O-O {[%clk 0:02:52]} 10. Qd2 {[%clk 0:02:43]}  h6 {[%clk 0:02:49]} 11. a3 {[%clk 0:02:37]}  Bd6 {[%clk 0:02:48]} 12. O-O-O {[%clk 0:02:27]}  Rhf8 {[%clk 0:02:47]} 13. h3 {[%clk 0:02:26]}  Nh5 {[%clk 0:02:45]} 14. Kb1 {[%clk 0:02:26]}  Be7 {[%clk 0:02:40]} 15. Rhf1 {[%clk 0:02:19]}  g5 {[%clk 0:02:36]} 16. Ne2 {[%clk 0:02:13]}  Nf4 {[%clk 0:02:30]} 17. Nc1 {[%clk 0:02:09]}  Bf6 {[%clk 0:02:19]} 18. Nb3 {[%clk 0:01:53]}  b6 {[%clk 0:02:18]} 19. Rf2 {[%clk 0:01:38]}  Kb7 {[%clk 0:02:16]} 20. Qc3 {[%clk 0:01:25]}  Qh7 {[%clk 0:02:10]} 21. Qc4 {[%clk 0:01:23]}  Rd6 {[%clk 0:02:01]} 22. Qb5 {[%clk 0:01:18]}  Kc8 {[%clk 0:01:48]} 23. Qa6+ {[%clk 0:01:18]}  Kb8 {[%clk 0:01:48]} 24. Nfd2 {[%clk 0:01:04]}  Rdd8 {[%clk 0:01:21]} 25. Nc5 {[%clk 0:00:57]}  bxc5 {[%clk 0:00:51]} 26. Qb5+ {[%clk 0:00:56]}  Kc8 {[%clk 0:00:49]} 27. Qxc6 {[%clk 0:00:57]}  Be7 {[%clk 0:00:39]} 28. Nc4 {[%clk 0:00:50]}  Bd6 {[%clk 0:00:25]} 29. Bxc5 {[%clk 0:00:46]}  Bxc5 {[%clk 0:00:21]} 30. Qxc5 {[%clk 0:00:44]}  Qd7 {[%clk 0:00:19]} 31. Qxa7 {[%clk 0:00:42]}  Qd4 {[%clk 0:00:18]} 32. Qa6+ {[%clk 0:00:29]}  Kd7 {[%clk 0:00:18]} 33. Qb5+ {[%clk 0:00:29]}  Ke7 {[%clk 0:00:18]} 34. Rdf1 {[%clk 0:00:24]}  c5 {[%clk 0:00:10]} 35. Na5 {[%clk 0:00:19]}  Kf6 {[%clk 0:00:08]} 36. Nc6 {[%clk 0:00:18]}  Qe3 {[%clk 0:00:07]} 37. Nxd8 {[%clk 0:00:18]}  Rxd8 {[%clk 0:00:07]} 38. Rf3 {[%clk 0:00:17]}  Qe2 {[%clk 0:00:06]} 39. g3 {[%clk 0:00:17]}  Kg6 {[%clk 0:00:05]} 40. g4 {[%clk 0:00:17]}  Rd6 {[%clk 0:00:04]} 41. Qxc5 {[%clk 0:00:17]}  Rd7 {[%clk 0:00:04]} 42. Qxe5 {[%clk 0:00:16]}  Rb7 {[%clk 0:00:04]} 43. Qc3 {[%clk 0:00:11]}  Rd7 {[%clk 0:00:03]} 44. h4 {[%clk 0:00:11]}  e5 {[%clk 0:00:02]} 45. hxg5 {[%clk 0:00:11]}  hxg5 {[%clk 0:00:02]} 46. R3f2 {[%clk 0:00:11]}  Qe3 {[%clk 0:00:02]} 47. Qxe5 {[%clk 0:00:11]}  Rf7 {[%clk 0:00:02]} 48. Qd6+ {[%clk 0:00:10]}  Rf6 {[%clk 0:00:02]} 49. Qd8 {[%clk 0:00:10]}  Kg7 {[%clk 0:00:02]} 50. Rh2 {[%clk 0:00:09]} 1-0


[Site "https://www.chess.com"]

[Event "Titled Tuesday Blitz May 2 Late 2023"]
[White "Tsyhanchuk, Stanislav"]
[Black "Haydon, David L"]
[WhiteFideId "13505130"]
[BlackFideId "415405"]
[WhiteElo "2173"]
[BlackElo "2326"]
[Result "0-1"]
[Round "08"]
[TimeControl "180+2"]
[Date "2023.05.02"]
[WhiteClock "0:00:06"]
[BlackClock "0:00:14"]

1. c4 {[%clk 0:03:00]}  c6 {[%clk 0:03:00]} 2. Nc3 {[%clk 0:03:00]}  d5 {[%clk 0:03:01]} 3. e3 {[%clk 0:03:00]}  Nf6 {[%clk 0:03:00]} 4. Nf3 {[%clk 0:03:00]}  Bg4 {[%clk 0:03:00]} 5. cxd5 {[%clk 0:03:00]}  cxd5 {[%clk 0:03:00]} 6. Qb3 {[%clk 0:03:00]}  e6 {[%clk 0:02:56]} 7. Qxb7 {[%clk 0:02:58]}  Nbd7 {[%clk 0:02:56]} 8. Bb5 {[%clk 0:02:47]}  Bd6 {[%clk 0:02:54]} 9. Bxd7+ {[%clk 0:02:41]}  Nxd7 {[%clk 0:02:53]} 10. Nb5 {[%clk 0:02:41]}  O-O {[%clk 0:02:42]} 11. Nxd6 {[%clk 0:02:38]}  Nc5 {[%clk 0:02:42]} 12. Qc6 {[%clk 0:02:27]}  Nd3+ {[%clk 0:02:39]} 13. Kf1 {[%clk 0:02:26]}  Qf6 {[%clk 0:02:29]} 14. Qc3 {[%clk 0:02:15]}  e5 {[%clk 0:02:11]} 15. Qxd3 {[%clk 0:01:54]}  Qxd6 {[%clk 0:02:10]} 16. Qa3 {[%clk 0:01:34]}  Qc7 {[%clk 0:02:01]} 17. d3 {[%clk 0:01:27]}  Rfc8 {[%clk 0:01:52]} 18. Bd2 {[%clk 0:01:26]}  e4 {[%clk 0:01:47]} 19. dxe4 {[%clk 0:01:22]}  Qc4+ {[%clk 0:01:45]} 20. Ke1 {[%clk 0:01:18]}  dxe4 {[%clk 0:01:43]} 21. Nd4 {[%clk 0:01:18]}  Rab8 {[%clk 0:01:33]} 22. h3 {[%clk 0:01:15]}  Bd7 {[%clk 0:01:30]} 23. b3 {[%clk 0:01:06]}  Qd3 {[%clk 0:01:28]} 24. Rc1 {[%clk 0:01:02]}  h5 {[%clk 0:01:16]} 25. Qb2 {[%clk 0:00:30]}  a5 {[%clk 0:01:09]} 26. Bc3 {[%clk 0:00:26]}  a4 {[%clk 0:01:03]} 27. b4 {[%clk 0:00:25]}  a3 {[%clk 0:01:00]} 28. Qd2 {[%clk 0:00:25]}  Qa6 {[%clk 0:00:49]} 29. Qe2 {[%clk 0:00:22]}  Qa4 {[%clk 0:00:47]} 30. f3 {[%clk 0:00:18]}  Rxb4 {[%clk 0:00:46]} 31. Kf2 {[%clk 0:00:18]}  Rbc4 {[%clk 0:00:43]} 32. Bd2 {[%clk 0:00:16]}  exf3 {[%clk 0:00:38]} 33. gxf3 {[%clk 0:00:13]}  h4 {[%clk 0:00:30]} 34. Rxc4 {[%clk 0:00:12]}  Rxc4 {[%clk 0:00:29]} 35. Rc1 {[%clk 0:00:13]}  Rxc1 {[%clk 0:00:28]} 36. Bxc1 {[%clk 0:00:13]}  Bxh3 {[%clk 0:00:28]} 37. Qc2 {[%clk 0:00:12]}  Qd7 {[%clk 0:00:26]} 38. Bxa3 {[%clk 0:00:12]}  Qd8 {[%clk 0:00:24]} 39. Qc5 {[%clk 0:00:12]}  Qf6 {[%clk 0:00:20]} 40. Qf8+ {[%clk 0:00:12]}  Kh7 {[%clk 0:00:20]} 41. Qe7 {[%clk 0:00:11]}  Qh6 {[%clk 0:00:19]} 42. Qe4+ {[%clk 0:00:11]}  Kg8 {[%clk 0:00:15]} 43. Bb4 {[%clk 0:00:10]}  Qg5 {[%clk 0:00:15]} 44. Qf4 {[%clk 0:00:10]}  Qd5 {[%clk 0:00:14]} 45. Nb3 {[%clk 0:00:07]}  Qd3 {[%clk 0:00:13]} 46. Qd4 {[%clk 0:00:06]}  Qf1# {[%clk 0:00:14]} 0-1


[Site "https://www.chess.com"]